[Event "Titled Tuesday Blitz May 30 Early 2023"]
[White "Miranda, Rafael"]
[Black "Zhigalko, Sergei"]
[WhiteFideId "130990"]
[BlackFideId "13502956"]
[WhiteElo "2204"]
[BlackElo "2626"]
[Result "1-0"]
[Round "03"]
[TimeControl "180+2"]
[Date "2023.05.30"]
[WhiteClock "0:00:24"]
[BlackClock "0:00:09"]

1. e4 {[%clk 0:03:00]}  c5 {[%clk 0:03:00]} 2. Nf3 {[%clk 0:03:00]}  Nc6 {[%clk 0:03:00]} 3. d4 {[%clk 0:02:57]}  cxd4 {[%clk 0:03:01]} 4. Nxd4 {[%clk 0:02:57]}  Nf6 {[%clk 0:03:02]} 5. Nc3 {[%clk 0:02:57]}  e5 {[%clk 0:03:02]} 6. Ndb5 {[%clk 0:02:58]}  d6 {[%clk 0:03:02]} 7. Bg5 {[%clk 0:02:56]}  a6 {[%clk 0:03:02]} 8. Na3 {[%clk 0:02:57]}  b5 {[%clk 0:03:03]} 9. Nd5 {[%clk 0:02:56]}  Be7 {[%clk 0:03:03]} 10. Bxf6 {[%clk 0:02:57]}  Bxf6 {[%clk 0:03:03]} 11. c4 {[%clk 0:02:58]}  b4 {[%clk 0:03:03]} 12. Nc2 {[%clk 0:02:58]}  O-O {[%clk 0:03:03]} 13. g3 {[%clk 0:02:59]}  a5 {[%clk 0:03:03]} 14. Bg2 {[%clk 0:02:59]}  Bg5 {[%clk 0:03:02]} 15. O-O {[%clk 0:02:59]}  Ne7 {[%clk 0:02:59]} 16. b3 {[%clk 0:02:53]}  Kh8 {[%clk 0:02:58]} 17. Qd3 {[%clk 0:02:50]}  Nxd5 {[%clk 0:02:58]} 18. Qxd5 {[%clk 0:02:48]}  Be6 {[%clk 0:02:58]} 19. Qd3 {[%clk 0:02:48]}  Qb6 {[%clk 0:02:58]} 20. Rad1 {[%clk 0:02:47]}  Rfd8 {[%clk 0:02:55]} 21. h4 {[%clk 0:02:46]}  Bh6 {[%clk 0:02:54]} 22. Kh2 {[%clk 0:02:47]}  a4 {[%clk 0:02:53]} 23. Bh3 {[%clk 0:02:46]}  axb3 {[%clk 0:02:49]} 24. axb3 {[%clk 0:02:46]}  Ra2 {[%clk 0:02:49]} 25. Bxe6 {[%clk 0:02:39]}  fxe6 {[%clk 0:02:50]} 26. Kg2 {[%clk 0:02:38]}  Rf8 {[%clk 0:02:32]} 27. Rde1 {[%clk 0:02:37]}  g5 {[%clk 0:02:12]} 28. hxg5 {[%clk 0:01:44]}  Bxg5 {[%clk 0:02:13]} 29. Re2 {[%clk 0:01:41]}  Kg7 {[%clk 0:02:00]} 30. Rd1 {[%clk 0:01:39]}  Be7 {[%clk 0:01:19]} 31. Rdd2 {[%clk 0:01:26]}  Qb7 {[%clk 0:00:49]} 32. Ne3 {[%clk 0:01:13]}  Ra1 {[%clk 0:00:36]} 33. c5 {[%clk 0:01:11]}  dxc5 {[%clk 0:00:28]} 34. Nc4 {[%clk 0:01:11]}  Rd8 {[%clk 0:00:17]} 35. Qf3 {[%clk 0:01:11]}  Rd4 {[%clk 0:00:11]} 36. Nxe5 {[%clk 0:01:06]}  Bf6 {[%clk 0:00:08]} 37. Qg4+ {[%clk 0:01:05]}  Kf8 {[%clk 0:00:06]} 38. Qxe6 {[%clk 0:00:41]}  Ra6 {[%clk 0:00:05]} 39. Nd7+ {[%clk 0:00:34]}  Kg7 {[%clk 0:00:01]} 40. Qg4+ {[%clk 0:00:31]}  Kf7 {[%clk 0:00:02]} 41. Nxc5 {[%clk 0:00:26]}  Qb5 {[%clk 0:00:01]} 42. Nxa6 {[%clk 0:00:20]}  Rxd2 {[%clk 0:00:01]} 43. Rxd2 {[%clk 0:00:18]}  Qxa6 {[%clk 0:00:02]} 44. Rd7+ {[%clk 0:00:17]}  Be7 {[%clk 0:00:02]} 45. Qf5+ {[%clk 0:00:14]}  Qf6 {[%clk 0:00:03]} 46. Rxe7+ {[%clk 0:00:13]}  Kxe7 {[%clk 0:00:03]} 47. Qxf6+ {[%clk 0:00:14]}  Kxf6 {[%clk 0:00:04]} 48. f4 {[%clk 0:00:15]}  Ke6 {[%clk 0:00:04]} 49. Kf3 {[%clk 0:00:15]}  Kd6 {[%clk 0:00:05]} 50. g4 {[%clk 0:00:16]}  Kc5 {[%clk 0:00:06]} 51. Ke3 {[%clk 0:00:17]}  Kb5 {[%clk 0:00:07]} 52. e5 {[%clk 0:00:17]}  h5 {[%clk 0:00:07]} 53. Ke4 {[%clk 0:00:18]}  h4 {[%clk 0:00:08]} 54. Kf3 {[%clk 0:00:18]}  h3 {[%clk 0:00:09]} 55. Kg3 {[%clk 0:00:18]}  h2 {[%clk 0:00:10]} 56. Kxh2 {[%clk 0:00:19]}  Kc5 {[%clk 0:00:11]} 57. e6 {[%clk 0:00:20]}  Kd4 {[%clk 0:00:12]} 58. e7 {[%clk 0:00:21]}  Kc3 {[%clk 0:00:12]} 59. e8=Q {[%clk 0:00:21]}  Kxb3 {[%clk 0:00:13]} 60. Qb8 {[%clk 0:00:22]}  Ka2 {[%clk 0:00:14]} 61. Qxb4 {[%clk 0:00:22]}  Ka1 {[%clk 0:00:15]} 62. f5 {[%clk 0:00:23]}  Ka2 {[%clk 0:00:09]} 63. f6 {[%clk 0:00:24]} 1-0


[Site "https://www.chess.com"]

[Event "Titled Tuesday Blitz May 30 Early 2023"]
[White "iHateNAJDORF"]
[Black "Steinberg, Nitzan"]
[BlackFideId "2801795"]
[WhiteElo "2600"]
[BlackElo "2486"]
[Result "0-1"]
[Round "03"]
[TimeControl "180+2"]
[Date "2023.05.30"]
[WhiteClock "0:00:00"]
[BlackClock "0:00:06"]

1. c4 {[%clk 0:03:00]}  Nf6 {[%clk 0:02:59]} 2. Nc3 {[%clk 0:03:01]}  g6 {[%clk 0:02:59]} 3. e4 {[%clk 0:03:00]}  d6 {[%clk 0:03:00]} 4. d4 {[%clk 0:03:00]}  Bg7 {[%clk 0:03:01]} 5. h3 {[%clk 0:03:00]}  O-O {[%clk 0:03:01]} 6. Be3 {[%clk 0:03:01]}  e5 {[%clk 0:02:58]} 7. d5 {[%clk 0:03:00]}  c6 {[%clk 0:02:54]} 8. g4 {[%clk 0:02:59]}  cxd5 {[%clk 0:02:54]} 9. cxd5 {[%clk 0:03:00]}  Nbd7 {[%clk 0:02:52]} 10. Nge2 {[%clk 0:02:59]}  h5 {[%clk 0:02:51]} 11. f3 {[%clk 0:02:38]}  Nc5 {[%clk 0:02:49]} 12. b4 {[%clk 0:02:28]}  Ncd7 {[%clk 0:02:44]} 13. Nb5 {[%clk 0:02:28]}  Nb6 {[%clk 0:02:40]} 14. Rc1 {[%clk 0:02:25]}  Bd7 {[%clk 0:02:25]} 15. Nec3 {[%clk 0:02:22]}  Bxb5 {[%clk 0:01:46]} 16. Bxb5 {[%clk 0:02:17]}  Nh7 {[%clk 0:01:31]} 17. Kf2 {[%clk 0:02:06]}  Kh8 {[%clk 0:01:25]} 18. Bd3 {[%clk 0:01:59]}  Bf6 {[%clk 0:01:22]} 19. Kg2 {[%clk 0:01:56]}  Bg5 {[%clk 0:01:21]} 20. Bxg5 {[%clk 0:01:54]}  Qxg5 {[%clk 0:01:19]} 21. Nb5 {[%clk 0:01:52]}  Qf6 {[%clk 0:01:12]} 22. a4 {[%clk 0:01:43]}  h4 {[%clk 0:01:03]} 23. a5 {[%clk 0:00:59]}  Nc8 {[%clk 0:00:57]} 24. Qd2 {[%clk 0:00:56]}  a6 {[%clk 0:00:56]} 25. Na3 {[%clk 0:00:54]}  Ne7 {[%clk 0:00:54]} 26. Rc7 {[%clk 0:00:52]}  Rab8 {[%clk 0:00:48]} 27. Rhc1 {[%clk 0:00:49]}  g5 {[%clk 0:00:47]} 28. Nc2 {[%clk 0:00:41]}  Rfc8 {[%clk 0:00:42]} 29. Ne3 {[%clk 0:00:38]}  Nf8 {[%clk 0:00:36]} 30. Bf1 {[%clk 0:00:32]}  Nfg6 {[%clk 0:00:34]} 31. Qf2 {[%clk 0:00:26]}  Qf4 {[%clk 0:00:30]} 32. R1c3 {[%clk 0:00:16]}  Rxc7 {[%clk 0:00:29]} 33. Rxc7 {[%clk 0:00:17]}  Rc8 {[%clk 0:00:30]} 34. Rxb7 {[%clk 0:00:12]}  Rc3 {[%clk 0:00:28]} 35. Nd1 {[%clk 0:00:12]}  Ra3 {[%clk 0:00:24]} 36. Rc7 {[%clk 0:00:10]}  Qf6 {[%clk 0:00:12]} 37. Rc3 {[%clk 0:00:06]}  Ra1 {[%clk 0:00:11]} 38. Ne3 {[%clk 0:00:04]}  Nf4+ {[%clk 0:00:11]} 39. Kh2 {[%clk 0:00:04]}  Kh7 {[%clk 0:00:08]} 40. Bxa6 {[%clk 0:00:03]}  Nfg6 {[%clk 0:00:08]} 41. Nf5 {[%clk 0:00:03]}  Nxf5 {[%clk 0:00:08]} 42. exf5 {[%clk 0:00:03]}  Nf4 {[%clk 0:00:08]} 43. Re3 {[%clk 0:00:03]}  e4 {[%clk 0:00:06]} 44. Rxe4 {[%clk 0:00:02]}  Rb1 {[%clk 0:00:07]} 45. Bf1 {[%clk 0:00:03]}  Qa1 {[%clk 0:00:07]} 46. Kg1 {[%clk 0:00:02]}  Nxh3+ {[%clk 0:00:06]} 47. Kg2 {[%clk 0:00:02]}  Nxf2 {[%clk 0:00:07]} 48. Bb5 {[%clk 0:00:02]}  Rg1+ {[%clk 0:00:07]} 49. Kxf2 {[%clk 0:00:02]}  h3 {[%clk 0:00:07]} 50. f6 {[%clk 0:00:01]}  Rg2+ {[%clk 0:00:07]} 51. Ke3 {[%clk 0:00:01]}  Qc3+ {[%clk 0:00:07]} 52. Bd3 {[%clk 0:00:00]}  Rd2 {[%clk 0:00:06]} 0-1


[Site "https://www.chess.com"]

[Event "Titled Tuesday Blitz May 30 Early 2023"]
[White "Mathieu, Phileas"]
[Black "Makarian, Rudik"]
[WhiteFideId "36048410"]
[BlackFideId "44105681"]
[WhiteElo "2241"]
[BlackElo "2461"]
[Result "0-1"]
[Round "03"]
[TimeControl "180+2"]
[Date "2023.05.30"]
[WhiteClock "0:00:16"]
[BlackClock "0:01:29"]

1. c4 {[%clk 0:03:00]}  Nf6 {[%clk 0:03:00]} 2. Nc3 {[%clk 0:03:01]}  g6 {[%clk 0:03:00]} 3. g3 {[%clk 0:02:59]}  Bg7 {[%clk 0:03:01]} 4. Bg2 {[%clk 0:02:59]}  c5 {[%clk 0:03:02]} 5. Nf3 {[%clk 0:02:57]}  Nc6 {[%clk 0:03:02]} 6. O-O {[%clk 0:02:57]}  h5 {[%clk 0:02:58]} 7. h4 {[%clk 0:02:53]}  d6 {[%clk 0:02:57]} 8. d3 {[%clk 0:02:52]}  Ng4 {[%clk 0:02:53]} 9. e4 {[%clk 0:02:45]}  O-O {[%clk 0:02:51]} 10. Nh2 {[%clk 0:02:41]}  Nxh2 {[%clk 0:02:50]} 11. Kxh2 {[%clk 0:02:42]}  Rb8 {[%clk 0:02:51]} 12. Bg5 {[%clk 0:02:34]}  Nd4 {[%clk 0:02:48]} 13. Qd2 {[%clk 0:02:29]}  b5 {[%clk 0:02:46]} 14. b3 {[%clk 0:02:16]}  Re8 {[%clk 0:02:31]} 15. Rae1 {[%clk 0:02:09]}  a5 {[%clk 0:02:28]} 16. Be3 {[%clk 0:01:54]}  b4 {[%clk 0:02:27]} 17. Ne2 {[%clk 0:01:50]}  Nxe2 {[%clk 0:02:25]} 18. Qxe2 {[%clk 0:01:51]}  a4 {[%clk 0:02:25]} 19. f4 {[%clk 0:01:51]}  Bg4 {[%clk 0:02:24]} 20. Bf3 {[%clk 0:01:48]}  Bxf3 {[%clk 0:02:25]} 21. Qxf3 {[%clk 0:01:49]}  axb3 {[%clk 0:02:22]} 22. axb3 {[%clk 0:01:49]}  e6 {[%clk 0:02:20]} 23. f5 {[%clk 0:01:34]}  exf5 {[%clk 0:02:19]} 24. exf5 {[%clk 0:01:34]}  Qd7 {[%clk 0:02:16]} 25. Qd5 {[%clk 0:01:30]}  Re5 {[%clk 0:02:12]} 26. Qf3 {[%clk 0:01:21]}  Rxf5 {[%clk 0:02:06]} 27. Qg2 {[%clk 0:01:14]}  Rxf1 {[%clk 0:02:06]} 28. Qxf1 {[%clk 0:01:13]}  Re8 {[%clk 0:02:06]} 29. Bf4 {[%clk 0:01:12]}  Re6 {[%clk 0:02:03]} 30. Re2 {[%clk 0:00:39]}  Qe8 {[%clk 0:01:59]} 31. Ra2 {[%clk 0:00:38]}  Bd4 {[%clk 0:01:55]} 32. Qg2 {[%clk 0:00:37]}  Kg7 {[%clk 0:01:52]} 33. Ra8 {[%clk 0:00:35]}  Qe7 {[%clk 0:01:51]} 34. Ra2 {[%clk 0:00:32]}  Re1 {[%clk 0:01:50]} 35. Bg5 {[%clk 0:00:29]}  Qe6 {[%clk 0:01:47]} 36. Bd2 {[%clk 0:00:25]}  Bg1+ {[%clk 0:01:31]} 37. Kh1 {[%clk 0:00:16]}  Rd1 {[%clk 0:01:29]} 0-1


[Site "https://www.chess.com"]

[Event "Titled Tuesday Blitz May 30 Early 2023"]
[White "Petrosyan, Manuel"]
[Black "Bartel, Michal"]
[WhiteFideId "13300857"]
[BlackFideId "1119257"]
[WhiteElo "2576"]
[BlackElo "2282"]
[Result "0-1"]
[Round "03"]
[TimeControl "180+2"]
[Date "2023.05.30"]
[WhiteClock "0:00:00"]
[BlackClock "0:01:20"]

1. e4 {[%clk 0:03:00]}  e5 {[%clk 0:02:57]} 2. Nf3 {[%clk 0:02:59]}  Nc6 {[%clk 0:02:56]} 3. Bb5 {[%clk 0:03:00]}  g6 {[%clk 0:02:56]} 4. O-O {[%clk 0:02:49]}  Bg7 {[%clk 0:02:56]} 5. c3 {[%clk 0:02:49]}  d6 {[%clk 0:02:56]} 6. d4 {[%clk 0:02:42]}  Bd7 {[%clk 0:02:56]} 7. dxe5 {[%clk 0:02:34]}  Nxe5 {[%clk 0:02:56]} 8. Bxd7+ {[%clk 0:02:32]}  Nxd7 {[%clk 0:02:56]} 9. Bf4 {[%clk 0:02:24]}  Ngf6 {[%clk 0:02:56]} 10. Nbd2 {[%clk 0:02:25]}  O-O {[%clk 0:02:56]} 11. h3 {[%clk 0:02:24]}  Re8 {[%clk 0:02:56]} 12. Re1 {[%clk 0:02:24]}  Nc5 {[%clk 0:02:56]} 13. Qc2 {[%clk 0:02:24]}  a5 {[%clk 0:02:56]} 14. Rad1 {[%clk 0:02:22]}  Qd7 {[%clk 0:02:56]} 15. Bh2 {[%clk 0:02:07]}  Qb5 {[%clk 0:02:46]} 16. c4 {[%clk 0:01:49]}  Qd7 {[%clk 0:02:37]} 17. e5 {[%clk 0:01:46]}  dxe5 {[%clk 0:02:30]} 18. Nxe5 {[%clk 0:01:34]}  Qc8 {[%clk 0:02:18]} 19. Ndf3 {[%clk 0:01:29]}  h6 {[%clk 0:02:10]} 20. Re3 {[%clk 0:00:58]}  Ra6 {[%clk 0:02:09]} 21. Rde1 {[%clk 0:00:58]}  Rae6 {[%clk 0:02:07]} 22. b3 {[%clk 0:00:44]}  Nfd7 {[%clk 0:01:52]} 23. Qd2 {[%clk 0:00:28]}  Nxe5 {[%clk 0:01:50]} 24. Bxe5 {[%clk 0:00:28]}  Rd8 {[%clk 0:01:41]} 25. Qxa5 {[%clk 0:00:23]}  Nd3 {[%clk 0:01:36]} 26. Bxg7 {[%clk 0:00:15]}  Nxe1 {[%clk 0:01:32]} 27. Qxe1 {[%clk 0:00:05]}  Rxe3 {[%clk 0:01:30]} 28. Qxe3 {[%clk 0:00:05]}  Kxg7 {[%clk 0:01:30]} 29. Qe5+ {[%clk 0:00:04]}  Kg8 {[%clk 0:01:26]} 30. Kh2 {[%clk 0:00:02]}  Qd7 {[%clk 0:01:26]} 31. Qa5 {[%clk 0:00:02]}  b6 {[%clk 0:01:25]} 32. Qa7 {[%clk 0:00:02]}  Qd6+ {[%clk 0:01:22]} 33. Kg1 {[%clk 0:00:02]}  Qf4 {[%clk 0:01:21]} 34. Qb7 {[%clk 0:00:00]}  Rd1+ {[%clk 0:01:20]} 0-1


[Site "https://www.chess.com"]

[Event "Titled Tuesday Blitz May 30 Early 2023"]
[White "Papadiamandis, Elliot"]
[Black "ATM622"]
[WhiteFideId "36074160"]
[WhiteElo "2219"]
[BlackElo "2545"]
[Result "1/2-1/2"]
[Round "03"]
[TimeControl "180+2"]
[Date "2023.05.30"]
[WhiteClock "0:00:32"]
[BlackClock "0:01:35"]

1. e4 {[%clk 0:03:00]}  c6 {[%clk 0:02:59]} 2. d4 {[%clk 0:02:55]}  d5 {[%clk 0:03:00]} 3. Nd2 {[%clk 0:02:54]}  dxe4 {[%clk 0:03:00]} 4. Nxe4 {[%clk 0:02:53]}  Bf5 {[%clk 0:03:00]} 5. Ng3 {[%clk 0:02:52]}  Bg6 {[%clk 0:03:00]} 6. h4 {[%clk 0:02:53]}  h6 {[%clk 0:03:00]} 7. Nf3 {[%clk 0:02:53]}  Nd7 {[%clk 0:02:59]} 8. h5 {[%clk 0:02:54]}  Bh7 {[%clk 0:02:59]} 9. Bd3 {[%clk 0:02:55]}  Bxd3 {[%clk 0:02:57]} 10. Qxd3 {[%clk 0:02:56]}  Ngf6 {[%clk 0:02:58]} 11. Bd2 {[%clk 0:02:56]}  e6 {[%clk 0:02:57]} 12. O-O-O {[%clk 0:02:57]}  c5 {[%clk 0:02:48]} 13. Rhe1 {[%clk 0:02:20]}  Be7 {[%clk 0:02:47]} 14. Ne4 {[%clk 0:01:57]}  Nxe4 {[%clk 0:02:43]} 15. Qxe4 {[%clk 0:01:54]}  Qb6 {[%clk 0:02:39]} 16. Bc3 {[%clk 0:01:52]}  Nf6 {[%clk 0:02:37]} 17. Qd3 {[%clk 0:01:22]}  O-O-O {[%clk 0:02:33]} 18. Qc4 {[%clk 0:01:20]}  Kb8 {[%clk 0:02:30]} 19. Ne5 {[%clk 0:01:20]}  Rhf8 {[%clk 0:02:27]} 20. g4 {[%clk 0:01:00]}  cxd4 {[%clk 0:02:22]} 21. Bxd4 {[%clk 0:00:55]}  Qa5 {[%clk 0:02:22]} 22. Qb3 {[%clk 0:00:53]}  Qb4 {[%clk 0:02:19]} 23. Qxb4 {[%clk 0:00:50]}  Bxb4 {[%clk 0:02:20]} 24. c3 {[%clk 0:00:50]}  Bd6 {[%clk 0:02:18]} 25. f3 {[%clk 0:00:49]}  Nd5 {[%clk 0:02:16]} 26. Nc4 {[%clk 0:00:47]}  Bf4+ {[%clk 0:02:14]} 27. Kc2 {[%clk 0:00:47]}  b5 {[%clk 0:02:12]} 28. Na5 {[%clk 0:00:39]}  Kc7 {[%clk 0:02:10]} 29. Bxg7 {[%clk 0:00:37]}  Ne3+ {[%clk 0:02:04]} 30. Rxe3 {[%clk 0:00:37]}  Bxe3 {[%clk 0:02:01]} 31. Bxf8 {[%clk 0:00:35]}  Rxf8 {[%clk 0:02:01]} 32. Nb3 {[%clk 0:00:34]}  Bb6 {[%clk 0:02:00]} 33. Nd2 {[%clk 0:00:30]}  f5 {[%clk 0:01:59]} 34. Re1 {[%clk 0:00:29]}  Kd6 {[%clk 0:01:59]} 35. Kd3 {[%clk 0:00:27]}  fxg4 {[%clk 0:01:57]} 36. fxg4 {[%clk 0:00:28]}  Rf4 {[%clk 0:01:55]} 37. Ne4+ {[%clk 0:00:28]}  Kd5 {[%clk 0:01:52]} 38. g5 {[%clk 0:00:27]}  hxg5 {[%clk 0:01:50]} 39. Nxg5 {[%clk 0:00:27]}  Rf5 {[%clk 0:01:48]} 40. Ne4 {[%clk 0:00:27]}  Bd8 {[%clk 0:01:44]} 41. h6 {[%clk 0:00:27]}  Rh5 {[%clk 0:01:41]} 42. Ke3 {[%clk 0:00:25]}  Rxh6 {[%clk 0:01:41]} 43. Rd1+ {[%clk 0:00:25]}  Ke5 {[%clk 0:01:39]} 44. Rxd8 {[%clk 0:00:23]}  Rh3+ {[%clk 0:01:39]} 45. Ke2 {[%clk 0:00:23]}  Kxe4 {[%clk 0:01:39]} 46. Rd4+ {[%clk 0:00:24]}  Ke5 {[%clk 0:01:39]} 47. Rb4 {[%clk 0:00:24]}  a6 {[%clk 0:01:38]} 48. a4 {[%clk 0:00:25]}  bxa4 {[%clk 0:01:36]} 49. Rxa4 {[%clk 0:00:26]}  Rh2+ {[%clk 0:01:37]} 50. Ke3 {[%clk 0:00:26]}  Rxb2 {[%clk 0:01:36]} 51. Rxa6 {[%clk 0:00:26]}  Rb1 {[%clk 0:01:36]} 52. Ra5+ {[%clk 0:00:27]}  Kf6 {[%clk 0:01:36]} 53. Kd4 {[%clk 0:00:26]}  Rd1+ {[%clk 0:01:35]} 54. Ke3 {[%clk 0:00:27]}  e5 {[%clk 0:01:34]} 55. Ra8 {[%clk 0:00:26]}  Ke6 {[%clk 0:01:33]} 56. c4 {[%clk 0:00:26]}  Rd4 {[%clk 0:01:32]} 57. Rc8 {[%clk 0:00:26]}  Rd1 {[%clk 0:01:32]} 58. Re8+ {[%clk 0:00:26]}  Kf6 {[%clk 0:01:31]} 59. c5 {[%clk 0:00:24]}  Rc1 {[%clk 0:01:28]} 60. Rc8 {[%clk 0:00:24]}  Ke6 {[%clk 0:01:28]} 61. Ke4 {[%clk 0:00:24]}  Rc4+ {[%clk 0:01:28]} 62. Kd3 {[%clk 0:00:24]}  Rd4+ {[%clk 0:01:28]} 63. Kc3 {[%clk 0:00:25]}  Kd5 {[%clk 0:01:29]} 64. c6 {[%clk 0:00:24]}  Rc4+ {[%clk 0:01:29]} 65. Kd3 {[%clk 0:00:24]}  e4+ {[%clk 0:01:28]} 66. Ke3 {[%clk 0:00:24]}  Rc3+ {[%clk 0:01:28]} 67. Ke2 {[%clk 0:00:25]}  Rxc6 {[%clk 0:01:27]} 68. Rxc6 {[%clk 0:00:25]}  Kxc6 {[%clk 0:01:28]} 69. Ke3 {[%clk 0:00:26]}  Kd5 {[%clk 0:01:28]} 70. Ke2 {[%clk 0:00:26]}  Kd4 {[%clk 0:01:29]} 71. Kd2 {[%clk 0:00:27]}  e3+ {[%clk 0:01:30]} 72. Ke2 {[%clk 0:00:27]}  Ke4 {[%clk 0:01:31]} 73. Ke1 {[%clk 0:00:28]}  Kd3 {[%clk 0:01:31]} 74. Kd1 {[%clk 0:00:29]}  Kd4 {[%clk 0:01:32]} 75. Ke2 {[%clk 0:00:30]}  Ke4 {[%clk 0:01:33]} 76. Ke1 {[%clk 0:00:30]}  Kf3 {[%clk 0:01:34]} 77. Kf1 {[%clk 0:00:31]}  Kf4 {[%clk 0:01:34]} 78. Ke2 {[%clk 0:00:32]}  Ke4 {[%clk 0:01:35]} 1/2-1/2


[Site "https://www.chess.com"]

[Event "Titled Tuesday Blitz May 30 Early 2023"]
[White "Bryakin, Mikhail"]
[Black "Golubev, Mikhail"]
[WhiteFideId "4165314"]
[BlackFideId "14100983"]
[WhiteElo "2467"]
[BlackElo "2374"]
[Result "0-1"]
[Round "03"]
[TimeControl "180+2"]
[Date "2023.05.30"]
[WhiteClock "0:00:16"]
[BlackClock "0:00:08"]

1. e4 {[%clk 0:02:59]}  c5 {[%clk 0:02:56]} 2. Nc3 {[%clk 0:02:54]}  e6 {[%clk 0:02:35]} 3. g3 {[%clk 0:02:46]}  Nc6 {[%clk 0:02:33]} 4. Bg2 {[%clk 0:02:45]}  g6 {[%clk 0:02:32]} 5. Nge2 {[%clk 0:02:44]}  Bg7 {[%clk 0:02:32]} 6. O-O {[%clk 0:02:44]}  Nge7 {[%clk 0:02:20]} 7. d3 {[%clk 0:02:44]}  O-O {[%clk 0:02:14]} 8. Be3 {[%clk 0:02:43]}  b6 {[%clk 0:02:13]} 9. Qd2 {[%clk 0:02:36]}  Nd4 {[%clk 0:01:57]} 10. Rac1 {[%clk 0:02:29]}  Nxe2+ {[%clk 0:01:51]} 11. Qxe2 {[%clk 0:02:25]}  d5 {[%clk 0:01:51]} 12. exd5 {[%clk 0:02:21]}  Nxd5 {[%clk 0:01:42]} 13. Nxd5 {[%clk 0:02:20]}  exd5 {[%clk 0:01:43]} 14. c3 {[%clk 0:02:21]}  Bf5 {[%clk 0:01:33]} 15. d4 {[%clk 0:02:18]}  c4 {[%clk 0:01:29]} 16. Qd2 {[%clk 0:02:17]}  Qd7 {[%clk 0:01:27]} 17. Rfe1 {[%clk 0:02:16]}  Rfe8 {[%clk 0:01:25]} 18. Bh6 {[%clk 0:02:15]}  Bh8 {[%clk 0:01:25]} 19. Rxe8+ {[%clk 0:02:11]}  Rxe8 {[%clk 0:01:24]} 20. Re1 {[%clk 0:02:12]}  Rxe1+ {[%clk 0:01:21]} 21. Qxe1 {[%clk 0:02:11]}  Qe6 {[%clk 0:01:18]} 22. Qxe6 {[%clk 0:02:05]}  fxe6 {[%clk 0:01:18]} 23. Bf4 {[%clk 0:02:05]}  Bf6 {[%clk 0:01:14]} 24. f3 {[%clk 0:02:04]}  b5 {[%clk 0:01:05]} 25. a3 {[%clk 0:02:02]}  h5 {[%clk 0:01:01]} 26. h4 {[%clk 0:02:00]}  Kf7 {[%clk 0:01:00]} 27. Kf2 {[%clk 0:01:59]}  Ke8 {[%clk 0:00:54]} 28. Ke3 {[%clk 0:01:59]}  Kd7 {[%clk 0:00:54]} 29. Bf1 {[%clk 0:01:59]}  Be7 {[%clk 0:00:49]} 30. Be2 {[%clk 0:02:00]}  a5 {[%clk 0:00:48]} 31. Bg5 {[%clk 0:01:54]}  Bd6 {[%clk 0:00:46]} 32. g4 {[%clk 0:01:54]}  Bb1 {[%clk 0:00:39]} 33. Bf4 {[%clk 0:01:53]}  Be7 {[%clk 0:00:38]} 34. Bg3 {[%clk 0:01:50]}  b4 {[%clk 0:00:34]} 35. axb4 {[%clk 0:01:49]}  axb4 {[%clk 0:00:34]} 36. Kd2 {[%clk 0:01:39]}  b3 {[%clk 0:00:30]} 37. Bf2 {[%clk 0:01:31]}  Bd6 {[%clk 0:00:18]} 38. Be3 {[%clk 0:01:30]}  Be7 {[%clk 0:00:18]} 39. Bf2 {[%clk 0:01:23]}  Bd6 {[%clk 0:00:18]} 40. Bd1 {[%clk 0:01:20]}  Bf4+ {[%clk 0:00:17]} 41. Be3 {[%clk 0:01:21]}  Bg3 {[%clk 0:00:16]} 42. Bg5 {[%clk 0:01:21]}  Ke8 {[%clk 0:00:12]} 43. Ke3 {[%clk 0:01:17]}  Kf7 {[%clk 0:00:12]} 44. f4 {[%clk 0:01:11]}  hxg4 {[%clk 0:00:10]} 45. Bxg4 {[%clk 0:01:12]}  Be1 {[%clk 0:00:10]} 46. f5 {[%clk 0:00:34]}  Bxf5 {[%clk 0:00:08]} 47. Bxf5 {[%clk 0:00:20]}  gxf5 {[%clk 0:00:09]} 48. Ke2 {[%clk 0:00:20]}  Bxc3 {[%clk 0:00:09]} 49. Bc1 {[%clk 0:00:20]}  Bxd4 {[%clk 0:00:08]} 50. h5 {[%clk 0:00:21]}  Bf6 {[%clk 0:00:08]} 51. Kf3 {[%clk 0:00:21]}  Kg7 {[%clk 0:00:08]} 52. Kg3 {[%clk 0:00:20]}  Kh7 {[%clk 0:00:08]} 53. Kf3 {[%clk 0:00:20]}  Bg7 {[%clk 0:00:08]} 54. Ke2 {[%clk 0:00:16]}  Bh6 {[%clk 0:00:08]} 0-1


[Site "https://www.chess.com"]

[Event "Titled Tuesday Blitz May 30 Early 2023"]
[White "Papasimakopoulos, Alexandros"]
[Black "Girsh, Daniel"]
[WhiteFideId "4244125"]
[BlackFideId "30949190"]
[WhiteElo "2359"]
[BlackElo "2075"]
[Result "0-1"]
[Round "03"]
[TimeControl "180+2"]
[Date "2023.05.30"]
[WhiteClock "0:00:59"]
[BlackClock "0:01:18"]

1. d4 {[%clk 0:02:55]}  Nf6 {[%clk 0:02:59]} 2. c4 {[%clk 0:02:54]}  e6 {[%clk 0:02:59]} 3. Nc3 {[%clk 0:02:55]}  d5 {[%clk 0:02:57]} 4. cxd5 {[%clk 0:02:55]}  exd5 {[%clk 0:02:57]} 5. Bg5 {[%clk 0:02:55]}  h6 {[%clk 0:02:53]} 6. Bh4 {[%clk 0:02:55]}  Bb4 {[%clk 0:02:53]} 7. Qa4+ {[%clk 0:02:54]}  Nc6 {[%clk 0:02:53]} 8. e3 {[%clk 0:02:54]}  O-O {[%clk 0:02:53]} 9. Bxf6 {[%clk 0:02:50]}  Qxf6 {[%clk 0:02:52]} 10. Nf3 {[%clk 0:02:51]}  Bg4 {[%clk 0:02:50]} 11. Be2 {[%clk 0:02:51]}  Be6 {[%clk 0:02:37]} 12. O-O {[%clk 0:02:50]}  a6 {[%clk 0:02:35]} 13. Rfc1 {[%clk 0:02:49]}  Rfe8 {[%clk 0:02:32]} 14. a3 {[%clk 0:02:48]}  Bd6 {[%clk 0:02:31]} 15. b4 {[%clk 0:02:48]}  Ne7 {[%clk 0:02:23]} 16. Qd1 {[%clk 0:02:44]}  Ng6 {[%clk 0:02:18]} 17. g3 {[%clk 0:02:44]}  Rad8 {[%clk 0:02:08]} 18. Ne1 {[%clk 0:02:41]}  c6 {[%clk 0:02:06]} 19. Nd3 {[%clk 0:02:40]}  Bf5 {[%clk 0:02:06]} 20. Na4 {[%clk 0:02:37]}  Re7 {[%clk 0:02:04]} 21. Nac5 {[%clk 0:02:36]}  Rde8 {[%clk 0:02:03]} 22. Bg4 {[%clk 0:02:35]}  Qg5 {[%clk 0:01:53]} 23. Bxf5 {[%clk 0:02:24]}  Qxf5 {[%clk 0:01:54]} 24. a4 {[%clk 0:02:16]}  Qh3 {[%clk 0:01:53]} 25. Qf1 {[%clk 0:02:05]}  Qg4 {[%clk 0:01:53]} 26. Qd1 {[%clk 0:02:04]}  Qg5 {[%clk 0:01:52]} 27. b5 {[%clk 0:02:03]}  axb5 {[%clk 0:01:49]} 28. axb5 {[%clk 0:02:04]}  h5 {[%clk 0:01:47]} 29. bxc6 {[%clk 0:02:04]}  bxc6 {[%clk 0:01:48]} 30. Ra6 {[%clk 0:02:02]}  h4 {[%clk 0:01:42]} 31. Rxc6 {[%clk 0:01:33]}  hxg3 {[%clk 0:01:31]} 32. Rxd6 {[%clk 0:01:30]}  gxf2+ {[%clk 0:01:32]} 33. Kh1 {[%clk 0:01:21]}  Nh4 {[%clk 0:01:22]} 34. Qf1 {[%clk 0:01:17]}  Qxe3 {[%clk 0:01:18]} 35. Qxf2 {[%clk 0:01:11]}  Qxf2 {[%clk 0:01:17]} 36. Nxf2 {[%clk 0:00:59]}  Re1+ {[%clk 0:01:18]} 0-1


[Site "https://www.chess.com"]